[Event "GER-ch Youth-U18w 2023"]
[Site "Willingen"]
[Date "2023.06.03"]
[Round "9.6"]
[White "Adelhardt, Lisa"]
[Black "Werner, Rosalie"]
[Result "1/2-1/2"]
[Annotator "NA RC COMBH"]
[ECO "B21"]
[WhiteElo "1656"]
[BlackElo "1751"]
[PlyCount "61"]
[EventDate "2022.06.05"]
[EventType "swiss"]
[EventRounds "9"]
[EventCountry "GER"]
[SourceTitle "playchess.com"]
[Source "ChessBase"]
[SourceQuality "1"]
[TimeControl "40/4500+30:900+30"]

1. e4 {[%emt 0:00:00]} c5 {[%emt 0:00:00]} 2. Be2 {[%emt 0:00:00]} d6 {[%emt 0:00:00]} 3. f4 {[%emt 0:00:00]} g6 {[%emt 0:00:00]} 4. Nf3 {[%emt 0:00:00]} Bg7 {[%emt 0:00:00]} 5. d3 {[%emt 0:00:00]} Nc6 {[%emt 0:00:00]} 6. c3 {[%emt 0:00:00]} e5 {[%emt 0:05:29]} 7. O-O {[%emt 0:00:00]} Nge7 {[%emt 0:01:50]} 8. Kh1 {[%emt 0:02:09]} O-O {[%emt 0:01:43]} 9. Qe1 {[%emt 0:02:55]} f5 {[%emt 0:07:07]} 10. fxe5 {[%emt 0:04:33]} dxe5 {[%emt 0:04:58]} 11. Nbd2 {[%emt 0:04:21]} h6 {[%emt 0:03:01]} 12. exf5 {[%emt 0:06:25]} gxf5 {[%emt 0:11:43]} 13. Qh4 {[%emt 0:13:51]} Be6 {[%emt 0:04:35]} 14. Nb3 {[%emt 0:14:40]} Bxb3 {[%emt 0:06:11]} 15. axb3 {[%emt 0:00:43]} Qd6 {[%emt 0:01:15]} 16. Qc4+ {[%emt 0:04:57]} Qd5 {[%emt 0:06:16]} 17. Nh4 {[%emt 0:01:56]} Qxc4 {[%emt 0:02:45]} 18. bxc4 {[%emt 0:03:18]} Rad8 {[%emt 0:02:31]} 19. g3 {[%emt 0:02:05]} Rd6 {[%emt 0:02:25]} 20. Be3 {[%emt 0:01:40]} b6 {[%emt 0:01:29]} 21. b4 {[%emt 0:05:59]} cxb4 {[%emt 0:11:06]} 22. cxb4 {[%emt 0:02:41]} Rd7 {[%emt 0:05:51]} 23. b5 {[%emt 0:03:27]} Nb4 {[%emt 0:01:00]} 24. Rad1 {[%emt 0:04:28]} Nc2 {[%emt 0:01:07]} 25. Bg1 {[%emt 0:02:42]} Nd4 {[%emt 0:00:50]} 26. Bh5 {[%emt 0:02:37]} Kh7 {[%emt 0:01:14]} 27. Kg2 {[%emt 0:01:24]} Ne6 {[%emt 0:01:46]} 28. Be3 {[%emt 0:01:08]} Ng5 {[%emt 0:02:42]} 29. Nf3 {[%emt 0:00:58]} Nxf3 {[%emt 0:00:22]} 30. Kxf3 {[%emt 0:00:51]} Ng6 {[%emt 0:00:39]} 31. Ke2 {[%emt 0:00:29]} 1/2-1/2

[Event "GER-ch Youth-U18w 2023"]
[Site "Willingen"]
[Date "2023.06.03"]
[Round "9.7"]
[White "Zoellner, Bente"]
[Black "Cordes, Jule"]
[Result "1-0"]
[Annotator "NA RC COMBH"]
[ECO "D36"]
[WhiteElo "1700"]
[BlackElo "1744"]
[PlyCount "97"]
[EventDate "2022.06.05"]
[EventType "swiss"]
[EventRounds "9"]
[EventCountry "GER"]
[SourceTitle "playchess.com"]
[Source "ChessBase"]
[SourceQuality "1"]
[TimeControl "40/4500+30:900+30"]

1. d4 {[%emt 0:00:00]} d5 {[%emt 0:00:00]} 2. c4 {[%emt 0:00:00]} e6 {[%emt 0:00:00]} 3. Nc3 {[%emt 0:00:00]} Nf6 {[%emt 0:00:00]} 4. Bg5 {[%emt 0:00:00]} Be7 {[%emt 0:00:00]} 5. cxd5 {[%emt 0:00:00]} exd5 {[%emt 0:00:00]} 6. e3 {[%emt 0:00:00]} O-O {[%emt 0:00:00]} 7. Bd3 {[%emt 0:00:00]} c6 {[%emt 0:00:00]} 8. Qc2 {[%emt 0:00:00]} Nbd7 {[%emt 0:00:00]} 9. Nge2 {[%emt 0:00:00]} Re8 {[%emt 0:00:00]} 10. O-O {[%emt 0:00:00]} Nf8 {[%emt 0:00:00]} 11. f3 {[%emt 0:00:00]} g6 {[%emt 0:00:00]} 12. a4 {[%emt 0:00:00]} Ne6 {[%emt 0:00:00]} 13. Bh4 {[%emt 0:00:00]} Qa5 {[%emt 0:15:03]} 14. Rad1 {[%emt 0:00:00]} Ng4 {[%emt 0:17:14]} 15. Bf2 {[%emt 0:00:00]} Nxf2 {[%emt 0:00:26]} 16. Kxf2 {[%emt 0:01:28]} Ng7 {[%emt 0:02:34]} 17. Rfe1 {[%emt 0:02:17]} Bd6 {[%emt 0:06:31]} 18. e4 {[%emt 0:05:50]} dxe4 {[%emt 0:07:36]} 19. fxe4 {[%emt 0:01:33]} Qh5 {[%emt 0:13:44]} 20. e5 {[%emt 0:03:34]} Be7 {[%emt 0:02:52]} 21. Kg1 {[%emt 0:04:07]} Nf5 {[%emt 0:15:41]} 22. Nf4 {[%emt 0:08:07]} Qg4 {[%emt 0:03:04]} 23. Qf2 {[%emt 0:02:53]} Bh4 {[%emt 0:00:57]} 24. g3 {[%emt 0:06:58]} Nxg3 {[%emt 0:00:01]} 25. hxg3 {[%emt 0:00:56]} Bxg3 {[%emt 0:00:04]} 26. Qg2 {[%emt 0:01:26]} Bxf4 {[%emt 0:01:51]} 27. Ne4 {[%emt 0:03:05]} Qxg2+ {[%emt 0:00:41]} 28. Kxg2 {[%emt 0:00:16]} Kg7 {[%emt 0:00:33]} 29. Kf3 {[%emt 0:01:24]} Bh6 {[%emt 0:00:28]} 30. Rg1 {[%emt 0:02:02]} Kh8 {[%emt 0:00:38]} 31. Nf6 {[%emt 0:01:04]} Re7 {[%emt 0:00:13]} 32. Rh1 {[%emt 0:00:18]} Kg7 {[%emt 0:00:23]} 33. Rh2 {[%emt 0:01:24]} c5 {[%emt 0:00:48]} 34. Rdh1 {[%emt 0:03:27]} cxd4 {[%emt 0:00:21]} 35. Rxh6 {[%emt 0:02:45]} Rxe5 {[%emt 0:00:02]} 36. Ne4 {[%emt 0:01:43]} Rh5 {[%emt 0:00:58]} 37. R6xh5 {[%emt 0:01:06]} gxh5 {[%emt 0:00:03]} 38. Rxh5 {[%emt 0:00:11]} Bd7 {[%emt 0:00:38]} 39. Nc5 {[%emt 0:02:56]} Bc6+ {[%emt 0:00:37]} 40. Kf4 {[%emt 0:00:35]} h6 {[%emt 0:00:28]} 41. b4 {[%emt 0:16:41]} b6 {[%emt 0:00:00]} 42. Be4 {[%emt 0:00:00]} Bxe4 {[%emt 0:09:16]} 43. Nxe4 {[%emt 0:00:00]} Rd8 {[%emt 0:00:14]} 44. Ng3 {[%emt 0:00:00]} d3 {[%emt 0:06:48]} 45. Nf5+ {[%emt 0:00:00]} Kg8 {[%emt 0:00:51]} 46. Nxh6+ {[%emt 0:00:00]} Kg7 {[%emt 0:00:13]} 47. Nf5+ {[%emt 0:00:00]} Kg8 {[%emt 0:00:08]} 48. Rh1 {[%emt 0:00:00]} d2 {[%emt 0:01:45]} 49. Rd1 {[%emt 0:00:00]} 1-0

[Event "GER-ch Youth-U18w 2023"]
[Site "Willingen"]
[Date "2023.06.03"]
[Round "9.8"]
[White "Hafermann, Lara"]
[Black "Petersen, Sophie"]
[Result "0-1"]
[Annotator "NA RC COMBH"]
[ECO "B50"]
[WhiteElo "1498"]
[BlackElo "1763"]
[PlyCount "68"]
[EventDate "2022.06.05"]
[EventType "swiss"]
[EventRounds "9"]
[EventCountry "GER"]
[SourceTitle "playchess.com"]
[Source "ChessBase"]
[SourceQuality "1"]
[TimeControl "40/4500+30:900+30"]

1. e4 {[%emt 0:00:00]} c5 {[%emt 0:00:00]} 2. Nf3 {[%emt 0:00:00]} d6 {[%emt 0:00:00]} 3. Bc4 {[%emt 0:00:00]} a6 {[%emt 0:00:00]} 4. Bb3 {[%emt 0:00:00]} Nf6 {[%emt 0:00:00]} 5. d3 {[%emt 0:00:00]} Nc6 {[%emt 0:00:00]} 6. c3 {[%emt 0:00:00]} b5 {[%emt 0:00:00]} 7. O-O {[%emt 0:00:00]} Bb7 {[%emt 0:00:00]} 8. Re1 {[%emt 0:00:00]} e6 {[%emt 0:00:00]} 9. Nbd2 {[%emt 0:00:00]} Be7 {[%emt 0:04:22]} 10. Nf1 {[%emt 0:00:00]} O-O {[%emt 0:09:53]} 11. Ng3 {[%emt 0:00:00]} Qc7 {[%emt 0:04:07]} 12. d4 {[%emt 0:00:00]} cxd4 {[%emt 0:05:02]} 13. cxd4 {[%emt 0:00:00]} Rac8 {[%emt 0:01:25]} 14. e5 {[%emt 0:13:35]} dxe5 {[%emt 0:05:06]} 15. dxe5 {[%emt 0:02:27]} Rfd8 {[%emt 0:00:50]} 16. Qe2 {[%emt 0:01:01]} Nd5 {[%emt 0:01:59]} 17. a3 {[%emt 0:07:36]} Na5 {[%emt 0:01:51]} 18. Ba2 {[%emt 0:01:22]} Qc2 {[%emt 0:03:06]} 19. Nd2 {[%emt 0:07:33]} Nf4 {[%emt 0:03:12]} 20. Qg4 {[%emt 0:01:53]} Nxg2 {[%emt 0:03:08]} 21. Bb1 {[%emt 0:03:22]} Qa4 {[%emt 0:04:54]} 22. Qh5 {[%emt 0:22:21]} g6 {[%emt 0:03:05]} 23. Qh6 {[%emt 0:00:53]} Qh4 {[%emt 0:01:03]} 24. Qxh4 {[%emt 0:03:39]} Nxh4 {[%emt 0:01:58]} 25. Be4 {[%emt 0:03:08]} Bxe4 {[%emt 0:05:35]} 26. Ngxe4 {[%emt 0:00:12]} Nc4 {[%emt 0:02:53]} 27. Kf1 {[%emt 0:02:19]} Nxd2+ {[%emt 0:02:40]} 28. Nxd2 {[%emt 0:03:09]} Rc2 {[%emt 0:02:14]} 29. Re2 {[%emt 0:05:16]} Bg5 {[%emt 0:01:58]} 30. Nb3 {[%emt 0:01:10]} Rd1+ {[%emt 0:04:02]} 31. Re1 {[%emt 0:00:07]} Rxe1+ {[%emt 0:00:57]} 32. Kxe1 {[%emt 0:00:02]} Bxc1 {[%emt 0:00:25]} 33. Rxc1 {[%emt 0:03:08]} Rxc1+ {[%emt 0:00:23]} 34. Nxc1 {[%emt 0:00:09]} Nf3+ {[%emt 0:00:05]} 0-1

[Event "GER-ch Youth-U18w 2023"]
[Site "Willingen"]
[Date "2023.06.03"]
[Round "9.9"]
[White "Henninger, Claire"]
[Black "Evering, Enna"]
[Result "1-0"]
[Annotator "NA RC COMBH"]
[ECO "C54"]
[WhiteElo "1610"]
[BlackElo "1548"]
[PlyCount "157"]
[EventDate "2022.06.05"]
[EventType "swiss"]
[EventRounds "9"]
[EventCountry "GER"]
[SourceTitle "playchess.com"]
[Source "ChessBase"]
[SourceQuality "1"]
[TimeControl "40/4500+30:900+30"]

1. e4 {[%emt 0:00:00]} e5 {[%emt 0:00:00]} 2. Nf3 {[%emt 0:00:00]} Nc6 {[%emt 0:00:00]} 3. Bc4 {[%emt 0:00:00]} Nf6 {[%emt 0:00:00]} 4. d3 {[%emt 0:00:00]} h6 {[%emt 0:00:00]} 5. O-O {[%emt 0:00:00]} Bc5 {[%emt 0:00:00]} 6. c3 {[%emt 0:00:00]} d6 {[%emt 0:00:00]} 7. Nbd2 {[%emt 0:00:00]} Be6 {[%emt 0:00:00]} 8. a4 {[%emt 0:00:00]} a5 {[%emt 0:00:00]} 9. Bxe6 {[%emt 0:08:53]} fxe6 {[%emt 0:00:00]} 10. Nc4 {[%emt 0:02:00]} O-O {[%emt 0:06:31]} 11. h3 {[%emt 0:02:54]} Ne7 {[%emt 0:10:55]} 12. Nh2 {[%emt 0:09:33]} Ng6 {[%emt 0:04:52]} 13. d4 {[%emt 0:08:08]} exd4 {[%emt 0:05:16]} 14. cxd4 {[%emt 0:00:10]} Bb4 {[%emt 0:01:29]} 15. Qe2 {[%emt 0:07:16]} d5 {[%emt 0:09:59]} 16. e5 {[%emt 0:10:20]} dxc4 {[%emt 0:07:02]} 17. exf6 {[%emt 0:00:25]} Qxf6 {[%emt 0:02:41]} 18. Qxc4 {[%emt 0:01:17]} c6 {[%emt 0:02:36]} 19. Ng4 {[%emt 0:01:53]} Qe7 {[%emt 0:03:17]} 20. f4 {[%emt 0:03:40]} Kh8 {[%emt 0:02:38]} 21. Be3 {[%emt 0:02:12]} Bd6 {[%emt 0:04:25]} 22. Ne5 {[%emt 0:01:59]} Bxe5 {[%emt 0:02:42]} 23. dxe5 {[%emt 0:01:00]} Qf7 {[%emt 0:06:14]} 24. Rad1 {[%emt 0:03:04]} Nh4 {[%emt 0:05:01]} 25. Qe2 {[%emt 0:10:04]} Nf5 {[%emt 0:00:57]} 26. Bf2 {[%emt 0:01:05]} Rad8 {[%emt 0:02:14]} 27. g4 {[%emt 0:01:39]} Ne7 {[%emt 0:00:36]} 28. Bc5 {[%emt 0:01:02]} Rfe8 {[%emt 0:01:27]} 29. Bxe7 {[%emt 0:02:39]} Qxe7 {[%emt 0:00:03]} 30. Qc2 {[%emt 0:02:34]} Qb4 {[%emt 0:01:15]} 31. b3 {[%emt 0:01:23]} Rxd1 {[%emt 0:00:58]} 32. Qxd1 {[%emt 0:00:15]} Qb6+ {[%emt 0:00:26]} 33. Kg2 {[%emt 0:02:26]} Rd8 {[%emt 0:00:09]} 34. Qf3 {[%emt 0:00:46]} Rd2+ {[%emt 0:00:45]} 35. Kh1 {[%emt 0:01:11]} Qd4 {[%emt 0:02:10]} 36. g5 {[%emt 0:02:00]} hxg5 {[%emt 0:02:09]} 37. fxg5 {[%emt 0:01:24]} Qd5 {[%emt 0:01:35]} 38. Qxd5 {[%emt 0:00:14]} cxd5 {[%emt 0:00:44]} 39. g6 {[%emt 0:00:42]} Kg8 {[%emt 0:00:08]} 40. Rc1 {[%emt 0:00:36]} Kf8 {[%emt 0:00:28]} 41. Rc8+ {[%emt 0:00:00]} Ke7 {[%emt 0:00:00]} 42. Rc7+ {[%emt 0:00:00]} Kf8 {[%emt 0:00:00]} 43. Rf7+ {[%emt 0:00:00]} Kg8 {[%emt 0:00:00]} 44. Rxb7 {[%emt 0:00:00]} Kf8 {[%emt 0:00:00]} 45. Rb8+ {[%emt 0:00:00]} Ke7 {[%emt 0:00:00]} 46. Rb7+ {[%emt 0:00:00]} Kf8 {[%emt 0:00:00]} 47. Rf7+ {[%emt 0:00:00]} Ke8 {[%emt 0:00:45]} 48. Rxg7 {[%emt 0:00:00]} Kf8 {[%emt 0:02:41]} 49. Rf7+ {[%emt 0:00:00]} Kg8 {[%emt 0:01:06]} 50. Re7 {[%emt 0:00:00]} Rd3 {[%emt 0:01:38]} 51. h4 {[%emt 0:05:55]} Rh3+ {[%emt 0:02:36]} 52. Kg2 {[%emt 0:00:21]} Rxh4 {[%emt 0:00:39]} 53. Rxe6 {[%emt 0:00:30]} Rb4 {[%emt 0:01:42]} 54. Rd6 {[%emt 0:01:01]} Rxb3 {[%emt 0:00:53]} 55. Rxd5 {[%emt 0:01:07]} Kg7 {[%emt 0:01:58]} 56. Rxa5 {[%emt 0:03:04]} Kxg6 {[%emt 0:01:14]} 57. Rb5 {[%emt 0:02:05]} Ra3 {[%emt 0:01:00]} 58. a5 {[%emt 0:00:10]} Kf5 {[%emt 0:00:30]} 59. Kf2 {[%emt 0:00:38]} Ke6 {[%emt 0:01:08]} 60. Ke2 {[%emt 0:02:16]} Kd7 {[%emt 0:01:19]} 61. Rc5 {[%emt 0:00:35]} Ra2+ {[%emt 0:01:58]} 62. Kd3 {[%emt 0:00:16]} Ra1 {[%emt 0:00:19]} 63. Kc4 {[%emt 0:01:27]} Rh1 {[%emt 0:00:57]} 64. Kb5 {[%emt 0:01:21]} Rb1+ {[%emt 0:00:15]} 65. Ka6 {[%emt 0:00:48]} Rb2 {[%emt 0:02:12]} 66. Rb5 {[%emt 0:01:41]} Rh2 {[%emt 0:01:39]} 67. Kb7 {[%emt 0:01:43]} Ke6 {[%emt 0:00:47]} 68. a6 {[%emt 0:00:51]} Rh7+ {[%emt 0:00:05]} 69. Kc6 {[%emt 0:01:13]} Kf5 {[%emt 0:01:21]} 70. Kb6 {[%emt 0:00:52]} Rh6+ {[%emt 0:00:12]} 71. Ka7 {[%emt 0:00:48]} Rh7+ {[%emt 0:00:18]} 72. Rb7 {[%emt 0:00:33]} Rh6 {[%emt 0:00:49]} 73. Re7 {[%emt 0:00:31]} Rh8 {[%emt 0:00:39]} 74. Kb7 {[%emt 0:00:30]} Rh1 {[%emt 0:00:11]} 75. a7 {[%emt 0:00:32]} Rb1+ {[%emt 0:00:22]} 76. Kc8 {[%emt 0:00:21]} Ra1 {[%emt 0:00:19]} 77. Kb8 {[%emt 0:00:15]} Rb1+ {[%emt 0:00:19]} 78. Rb7 {[%emt 0:00:11]} Ra1 {[%emt 0:00:52]} 79. a8=Q {[%emt 0:00:09]} 1-0

[Event "GER-ch Youth-U18w 2023"]
[Site "Willingen"]
[Date "2023.06.03"]
[Round "9.10"]
[White "Kieckbusch, Lotta"]
[Black "Dohon, Maria-Johanna"]
[Result "0-1"]
[Annotator "NA RC COMBH"]
[ECO "B50"]
[WhiteElo "1308"]
[BlackElo "1507"]
[PlyCount "65"]
[EventDate "2022.06.05"]
[EventType "swiss"]
[EventRounds "9"]
[EventCountry "GER"]
[SourceTitle "playchess.com"]
[Source "ChessBase"]
[SourceQuality "1"]
[TimeControl "40/4500+30:900+30"]

1. e4 {[%emt 0:00:00]} c5 {[%emt 0:00:00]} 2. Nf3 {[%emt 0:00:00]} d6 {[%emt 0:00:00]} 3. c3 {[%emt 0:00:00]} Nf6 {[%emt 0:00:00]} 4. Bd3 {[%emt 0:00:00]} e5 {[%emt 0:00:00]} 5. Bc2 {[%emt 0:00:00]} Nc6 {[%emt 0:00:00]} 6. d3 {[%emt 0:00:00]} g6 {[%emt 0:00:00]} 7. Nbd2 {[%emt 0:00:00]} Bg7 {[%emt 0:00:00]} 8. Nf1 {[%emt 0:00:00]} O-O {[%emt 0:00:00]} 9. Ng3 {[%emt 0:00:00]} h6 {[%emt 0:00:00]} 10. O-O {[%emt 0:00:00]} Be6 {[%emt 0:00:00]} 11. h3 {[%emt 0:01:39]} Rc8 {[%emt 0:00:00]} 12. Be3 {[%emt 0:01:44]} Ne7 {[%emt 0:04:12]} 13. Qd2 {[%emt 0:03:37]} Kh7 {[%emt 0:01:34]} 14. d4 {[%emt 0:13:13]} cxd4 {[%emt 0:06:42]} 15. cxd4 {[%emt 0:00:22]} Qc7 {[%emt 0:04:27]} 16. Rac1 {[%emt 0:01:52]} Qb8 {[%emt 0:00:11]} 17. Nh2 {[%emt 0:14:36]} Nxe4 {[%emt 0:18:18]} 18. Nxe4 {[%emt 0:06:22]} f5 {[%emt 0:01:01]} 19. Ng5+ {[%emt 0:01:10]} hxg5 {[%emt 0:00:30]} 20. Bxg5 {[%emt 0:00:09]} Ng8 {[%emt 0:01:45]} 21. Nf3 {[%emt 0:05:22]} e4 {[%emt 0:02:30]} 22. Nh2 {[%emt 0:02:39]} Rc4 {[%emt 0:05:02]} 23. d5 {[%emt 0:02:32]} Rd4 {[%emt 0:09:05]} 24. Qf4 {[%emt 0:03:46]} Bxd5 {[%emt 0:04:36]} 25. Qh4+ {[%emt 0:00:53]} Bh6 {[%emt 0:00:31]} 26. g4 {[%emt 0:06:45]} Kg7 {[%emt 0:06:24]} 27. Bxh6+ {[%emt 0:02:08]} Nxh6 {[%emt 0:00:11]} 28. gxf5 {[%emt 0:03:01]} Nxf5 {[%emt 0:01:26]} 29. Qg5 {[%emt 0:00:54]} Qd8 {[%emt 0:02:00]} 30. Qxd8 {[%emt 0:02:22]} Rxd8 {[%emt 0:00:08]} 31. Rfe1 {[%emt 0:01:08]} Rh8 {[%emt 0:02:32]} 32. f3 {[%emt 0:06:15]} exf3 {[%emt 0:05:36]} 33. Bxf5 {[%emt 0:00:25]} 0-1

[Event "GER-ch Youth-U18w 2023"]
[Site "Willingen"]
[Date "2023.06.03"]
[Round "9.11"]
[White "Kalina, Lena"]
[Black "Gossing, Marie-Sophie"]
[Result "1-0"]
[Annotator "NA RC COMBH"]
[ECO "A16"]
[WhiteElo "1776"]
[BlackElo "1395"]
[PlyCount "188"]
[EventDate "2022.06.05"]
[EventType "swiss"]
[EventRounds "9"]
[EventCountry "GER"]
[SourceTitle "playchess.com"]
[Source "ChessBase"]
[SourceQuality "1"]
[TimeControl "40/4500+30:900+30"]

1. c4 {[%emt 0:00:00]} Nf6 {[%emt 0:00:00]} 2. Nc3 {[%emt 0:00:00]} g6 {[%emt 0:00:00]} 3. g3 {[%emt 0:00:00]} Bg7 {[%emt 0:00:00]} 4. Bg2 {[%emt 0:00:00]} O-O {[%emt 0:00:00]} 5. d3 {[%emt 0:00:00]} d6 {[%emt 0:00:00]} 6. e4 {[%emt 0:00:00]} c5 {[%emt 0:00:00]} 7. Nge2 {[%emt 0:00:00]} e5 {[%emt 0:03:21]} 8. O-O {[%emt 0:00:00]} Na6 {[%emt 0:02:07]} 9. a3 {[%emt 0:00:00]} Bd7 {[%emt 0:05:50]} 10. Rb1 {[%emt 0:00:00]} Nc7 {[%emt 0:03:47]} 11. b4 {[%emt 0:00:47]} b6 {[%emt 0:02:50]} 12. f4 {[%emt 0:06:16]} Nfe8 {[%emt 0:06:04]} 13. f5 {[%emt 0:04:16]} g5 {[%emt 0:03:07]} 14. Be3 {[%emt 0:04:38]} h6 {[%emt 0:04:51]} 15. Qd2 {[%emt 0:02:52]} Nf6 {[%emt 0:05:44]} 16. h4 {[%emt 0:05:15]} Ng4 {[%emt 0:00:51]} 17. Bxg5 {[%emt 0:03:05]} hxg5 {[%emt 0:01:51]} 18. hxg5 {[%emt 0:00:38]} Nf6 {[%emt 0:08:27]} 19. gxf6 {[%emt 0:05:24]} Qxf6 {[%emt 0:01:38]} 20. Rf3 {[%emt 0:09:23]} Bh6 {[%emt 0:01:31]} 21. Qe1 {[%emt 0:01:07]} Bg5 {[%emt 0:07:03]} 22. Kf2 {[%emt 0:05:33]} Kg7 {[%emt 0:02:26]} 23. Ng1 {[%emt 0:05:09]} Qh6 {[%emt 0:05:34]} 24. Ke2 {[%emt 0:02:12]} Rh8 {[%emt 0:06:48]} 25. Nh3 {[%emt 0:03:44]} Bf6 {[%emt 0:02:40]} 26. Nd1 {[%emt 0:12:47]} Rag8 {[%emt 0:01:39]} 27. Ne3 {[%emt 0:03:13]} Kf8 {[%emt 0:00:46]} 28. Qf2 {[%emt 0:04:26]} Ne8 {[%emt 0:02:43]} 29. Rh1 {[%emt 0:02:38]} Qg7 {[%emt 0:00:42]} 30. Nd5 {[%emt 0:01:03]} Bc8 {[%emt 0:01:53]} 31. Qe1 {[%emt 0:02:11]} Bb7 {[%emt 0:00:22]} 32. Ne3 {[%emt 0:01:10]} Be7 {[%emt 0:01:11]} 33. Qd1 {[%emt 0:01:22]} Nf6 {[%emt 0:00:27]} 34. Qa4 {[%emt 0:01:05]} a6 {[%emt 0:00:17]} 35. bxc5 {[%emt 0:00:24]} dxc5 {[%emt 0:00:41]} 36. Rb1 {[%emt 0:00:41]} Bd8 {[%emt 0:00:34]} 37. Qc2 {[%emt 0:01:33]} Ng4 {[%emt 0:00:45]} 38. Nd5 {[%emt 0:00:58]} Qh6 {[%emt 0:01:06]} 39. Qa4 {[%emt 0:00:28]} Qd6 {[%emt 0:03:43]} 40. Rh1 {[%emt 0:00:31]} Nf6 {[%emt 0:01:10]} 41. Ne3 {[%emt 0:00:00]} Qd4 {[%emt 0:00:00]} 42. Qb3 {[%emt 0:00:00]} Rg7 {[%emt 0:00:00]} 43. Nf2 {[%emt 0:00:00]} Rgh7 {[%emt 0:02:02]} 44. Rxh7 {[%emt 0:00:00]} Rxh7 {[%emt 0:00:45]} 45. g4 {[%emt 0:00:08]} Nd7 {[%emt 0:02:35]} 46. Nh3 {[%emt 0:01:35]} Rg7 {[%emt 0:02:39]} 47. Nf2 {[%emt 0:07:51]} Bc6 {[%emt 0:00:46]} 48. Rh3 {[%emt 0:00:53]} Bg5 {[%emt 0:02:18]} 49. Nfd1 {[%emt 0:01:30]} Rg8 {[%emt 0:01:13]} 50. Nc3 {[%emt 0:01:02]} Bxe3 {[%emt 0:01:47]} 51. Rxe3 {[%emt 0:00:36]} Rxg4 {[%emt 0:00:06]} 52. Bf1 {[%emt 0:01:54]} Rh4 {[%emt 0:00:43]} 53. Rg3 {[%emt 0:00:58]} Rf4 {[%emt 0:01:11]} 54. Rg2 {[%emt 0:00:51]} Rh4 {[%emt 0:00:48]} 55. Nd1 {[%emt 0:01:27]} b5 {[%emt 0:00:58]} 56. Ne3 {[%emt 0:01:22]} Nf6 {[%emt 0:01:31]} 57. Nc2 {[%emt 0:02:51]} Qd7 {[%emt 0:00:34]} 58. Qc3 {[%emt 0:00:17]} Qc7 {[%emt 0:00:41]} 59. Ke1 {[%emt 0:00:55]} a5 {[%emt 0:01:22]} 60. cxb5 {[%emt 0:00:26]} Bxb5 {[%emt 0:00:20]} 61. Ne3 {[%emt 0:00:22]} Ke7 {[%emt 0:00:42]} 62. Rb2 {[%emt 0:00:34]} Ba6 {[%emt 0:01:14]} 63. Nc4 {[%emt 0:00:31]} Bxc4 64. Qxc4 {[%emt 0:00:01]} Ng4 {[%emt 0:01:42]} 65. Rb5 {[%emt 0:00:46]} Rh2 {[%emt 0:00:45]} 66. Rxc5 {[%emt 0:00:22]} Qb6 {[%emt 0:00:36]} 67. Be2 {[%emt 0:01:28]} Qb1+ {[%emt 0:01:27]} 68. Qc1 {[%emt 0:00:06]} Rh1+ {[%emt 0:00:08]} 69. Bf1 {[%emt 0:00:13]} Qxc1+ {[%emt 0:00:31]} 70. Rxc1 {[%emt 0:00:05]} Ne3 {[%emt 0:00:05]} 71. Ke2 {[%emt 0:00:12]} Ng4 {[%emt 0:00:27]} 72. Kd2 {[%emt 0:00:47]} Rh2+ {[%emt 0:00:43]} 73. Be2 {[%emt 0:00:39]} Kd6 {[%emt 0:00:43]} 74. Rc8 {[%emt 0:00:56]} Nf6 {[%emt 0:00:51]} 75. Ra8 {[%emt 0:00:22]} Nd7 {[%emt 0:00:22]} 76. Rxa5 {[%emt 0:00:12]} Nc5 {[%emt 0:00:04]} 77. Ke1 {[%emt 0:01:06]} Rh1+ {[%emt 0:00:12]} 78. Kf2 {[%emt 0:00:19]} Rh2+ {[%emt 0:00:46]} 79. Kf1 {[%emt 0:00:11]} Rh1+ {[%emt 0:00:20]} 80. Kg2 {[%emt 0:00:06]} Ra1 {[%emt 0:00:06]} 81. Ra8 {[%emt 0:00:28]} Ra2 {[%emt 0:00:49]} 82. Kf3 {[%emt 0:00:04]} Nb3 {[%emt 0:00:13]} 83. Ke3 {[%emt 0:00:35]} Nd4 {[%emt 0:00:16]} 84. Bd1 {[%emt 0:01:31]} Ra1 {[%emt 0:00:24]} 85. Kd2 {[%emt 0:00:14]} Kc5 {[%emt 0:00:45]} 86. Bh5 {[%emt 0:00:57]} Ra2+ {[%emt 0:00:36]} 87. Kc1 {[%emt 0:00:11]} f6 {[%emt 0:01:01]} 88. Bf7 {[%emt 0:00:15]} Rc2+ {[%emt 0:00:54]} 89. Kb1 {[%emt 0:00:14]} Rd2 {[%emt 0:00:23]} 90. Bc4 {[%emt 0:00:19]} Ne2 {[%emt 0:00:47]} 91. a4 {[%emt 0:00:36]} Nc3+ {[%emt 0:00:44]} 92. Kc1 {[%emt 0:00:16]} Rf2 {[%emt 0:00:32]} 93. a5 {[%emt 0:00:34]} Rf1+ {[%emt 0:00:31]} 94. Kc2 {[%emt 0:00:28]} Na4 {[%emt 0:00:32]} 1-0

[Event "GER-ch Youth-U18w 2023"]
[Site "Willingen"]
[Date "2023.06.03"]
[Round "9.12"]
[White "Avetyan, Manan"]
[Black "Foltin, Alica"]
[Result "1-0"]
[Annotator "NA RC COMBH"]
[ECO "A05"]
[WhiteElo "1368"]
[BlackElo "1540"]
[PlyCount "62"]
[EventDate "2022.06.05"]
[EventType "swiss"]
[EventRounds "9"]
[EventCountry "GER"]
[SourceTitle "playchess.com"]
[Source "ChessBase"]
[SourceQuality "1"]
[TimeControl "40/4500+30:900+30"]

1. Nf3 {[%emt 0:00:00]} Nf6 {[%emt 0:00:00]} 2. g3 {[%emt 0:00:00]} g6 {[%emt 0:00:00]} 3. Bg2 {[%emt 0:00:00]} Bg7 {[%emt 0:00:00]} 4. d3 {[%emt 0:00:00]} d6 {[%emt 0:00:00]} 5. e4 {[%emt 0:00:00]} Nbd7 {[%emt 0:00:00]} 6. O-O {[%emt 0:00:00]} O-O {[%emt 0:00:00]} 7. Re1 {[%emt 0:00:00]} e5 {[%emt 0:00:00]} 8. Nbd2 {[%emt 0:00:00]} h6 {[%emt 0:00:00]} 9. c3 {[%emt 0:10:59]} Nh7 {[%emt 0:04:41]} 10. d4 {[%emt 0:10:01]} c6 {[%emt 0:05:37]} 11. Nf1 {[%emt 0:09:57]} f5 {[%emt 0:02:53]} 12. exf5 {[%emt 0:12:38]} gxf5 {[%emt 0:00:36]} 13. dxe5 {[%emt 0:04:08]} dxe5 {[%emt 0:00:33]} 14. Nh4 {[%emt 0:04:18]} Nc5 {[%emt 0:03:37]} 15. Ng6 {[%emt 0:04:51]} Qxd1 {[%emt 0:01:07]} 16. Rxd1 {[%emt 0:00:05]} Re8 {[%emt 0:00:27]} 17. Ne3 {[%emt 0:05:53]} Ng5 {[%emt 0:06:06]} 18. h4 {[%emt 0:07:12]} Nf7 {[%emt 0:00:32]} 19. h5 {[%emt 0:00:21]} e4 {[%emt 0:00:29]} 20. Bh3 {[%emt 0:00:58]} Ng5 {[%emt 0:02:05]} 21. Bxf5 {[%emt 0:00:43]} Nf3+ {[%emt 0:03:05]} 22. Kg2 {[%emt 0:00:03]} Bxf5 {[%emt 0:01:49]} 23. Nxf5 {[%emt 0:00:03]} Kh7 {[%emt 0:04:51]} 24. Be3 {[%emt 0:01:42]} Nd3 {[%emt 0:01:20]} 25. Rxd3 {[%emt 0:06:42]} exd3 {[%emt 0:04:07]} 26. Kxf3 {[%emt 0:00:03]} Rad8 {[%emt 0:01:59]} 27. Rd1 {[%emt 0:00:39]} b6 {[%emt 0:02:36]} 28. Bd4 {[%emt 0:04:19]} Bxd4 {[%emt 0:01:27]} 29. Nxd4 {[%emt 0:00:17]} c5 {[%emt 0:00:31]} 30. Nc6 {[%emt 0:00:06]} Rd6 {[%emt 0:03:12]} 31. Nce5 {[%emt 0:01:42]} Rf6+ {[%emt 0:02:14]} 1-0